{"text_format":"3","workbook":"xlsx","n_sheets":6,"sheets":["Start","Prezentare generală","Șablon de costuri de pornire","Exemplu de costuri de pornire","Șablon de profit și pierdere","Exemplu de profit și pierdere"],"not_rendered":{"defined_names":6},"read":"whole","date_system":"1900"}

{"sheet":"Start","index":0,"n_rows":8,"n_cols":2,"rows_kept":8}
[null,"DESPRE ACEST ȘABLON"]
[null,"Creați un plan financiar pentru deschiderea unei firme utilizând acest șablon. "]
[null,"Obțineți o prezentare generală a unui plan financiar în foaia de lucru Prezentare generală. "]
[null,"Utilizați foile de lucru Șablon pentru costuri de pornire și Șablon pentru profit și pierdere pentru a ține evidența costurilor de pornire, a profitului și a pierderilor. "]
[null,"Foile de lucru Exemplu de costuri de pornire și Exemplu de profit și pierdere conțin date eșantion în tabele."]
[null,"Notă: "]
[null,"Găsiți instrucțiuni suplimentare în coloana A în toate foile de lucru. Acest text a fost ascuns intenționat. Pentru a elimina textul, selectați coloana A, apoi DELETE. Pentru a reafișa textul, selectați coloana A, apoi schimbați culoarea de font."]
[null,"Pentru a afla mai multe despre tabele, apăsați SHIFT, apoi F10 într-un tabel, selectați opțiunea TABEL, apoi selectați TEXT ALTERNATIV."]

{"sheet":"Prezentare generală","index":1,"n_rows":7,"n_cols":2,"rows_kept":7}
[null,"PLAN FINANCIAR PENTRU FIRME NOI"]
[null,"Crearea unui plan financiar este locul în care se leagă toată planificarea afacerii. După ce identificați produsul, piața țintă și clienții țintă, împreună cu prețurile, sunteți gata să începeți estimarea costurilor, a vânzărilor și a profitului. Aceste elemente, împreună cu presupunerile dvs., vă vor ajuta să estimați previziunea de vânzări. Cealaltă parte a afacerii constă în cheltuielile pe care vă așteptați să le genereze. Acest aspect este important în mod curent, pentru a vedea când sunteți profitabil. De asemenea, este important la înființarea afacerii, pentru a ști ce cheltuieli va trebui să finanțați înainte de a încasa vânzări sau alte venituri generate de clienți. "]
[null,"Costuri de pornire proiectate: Tabelul din fila următoare, Șablon pentru costuri de pornire, oferă un șablon necompletat cu câteva instrucțiuni pentru a începe.  Următoarea filă, Exemplu de costuri de pornire, afișează un eșantion de elemente de cost, atât recurente, cât și singulare, de care puteți avea nevoie pentru a vă deschide firma. Multe firme se finanțează cu credit pe o anumită perioadă și nu au numerar disponibil imediat. Este important să estimați când vor începe să intre bani în firmă, făcând o presupunere referitoare la numărul de luni de elemente recurente, în plus față de cheltuielile singulare, pe care va trebui să le finanțați din economii sau dintr-o investiție inițială.  "]
[null,"Model de profit și pierdere proiectat: În fila etichetată Șablon pentru profit și pierdere, veți găsi un șablon necompletat pentru previziune de vânzări și un model pentru profit și pierdere. Fila Următoare, Exemplu de profit și pierdere, afișează un eșantion de proiecții pe care o firmă mică le estimează pentru primele 12 luni de funcțiune. Partea de sus a tabelului din fiecare model afișează vânzările proiectate și profitul brut. Acesta este un loc bun pentru a începe previziunea de vânzări. Secțiunea următoare, de mai jos, enumeră cheltuielile recurente pe care le proiectați pentru aceleași luni. Acestea ar trebui să fie compatibile cu costurile de pornire estimate pe care le-ați completat în secțiunea anterioară. În partea de jos a acestui model, veți începe să vedeți când deveniți profitabil și ce cheltuieli au cel mai mare impact asupra profitabilității dvs. "]
[null,"Monitorizați progresul presupunerilor pe care le faceți pentru estimarea veniturilor și a costului bunurilor vândute. Pentru firmele care nu au început încă să funcționeze, ar trebui să înțelegeți cum să le estimați pentru produsul sau serviciul dvs.  Găsiți mai jos câteva îndrumări pentru estimare: "]
[null,"Venituri: Începeți prin a determina din piața țintă (grupul de clienți potențiali, întreprinderi sau consumatori) câte dintre acestea ar fi vizate în primul an. Ce procent dintre acestea vă așteptați să se concretizeze? Care ar fi o tranzacție medie pentru achiziționarea produsului sau serviciului dvs.? Câte puteți realiza în prima lună, în a doua și așa mai departe? Se recomandă să începeți cu un număr în prima lună și să-l creșteți cu un procent, de exemplu cu 10%.  De exemplu, dacă vindeți servicii de curățenie firmelor mici din orașul dvs. și există 500 de firme care credeți că au nevoie de acest serviciu. Dacă valoarea medie a contractului este de 250 USD/lună, trebuie să estimați cu câte firme puteți semna un contract în fiecare lună în primul an. "]
[null,"Costul bunurilor vândute (COGS): Acesta ar trebui să fie calculat pentru produse și unele servicii.  Acesta este costul inclus pentru a produce produsul.  De exemplu, dacă vindeți îmbrăcăminte, COGS ar fi prețul pe care l-ați plătit pentru a cumpăra îmbrăcămintea de la un producător.  Dacă le confecționați dvs., ar fi costul materialelor și al muncii pentru a le confecționa. Pentru servicii, ar fi costul direct al muncii pentru o oră de muncă facturabilă.  Tot ce urmează sub profitul brut din Profit și pierdere sunt costuri fixe sau de regie pentru întreaga firmă, cum ar fi chiria, telefonul sau chiar marketingul. "]

{"sheet":"Șablon de costuri de pornire","index":2,"n_rows":10,"n_cols":6,"rows_kept":10,"merged":[[1,2,1,5]]}
[null,"COSTURI DE PORNIRE"]
[null,"Cafeneaua ta",{"$f":"TODAY()","v":"2022-01-13"}]
[]
[null,"ELEMENTE DE COST","LUNI","COST/LUNĂ","COST UNIC","COST TOTAL"]
[null,"Publicitate/marketing",{"$nulls":3},{"$f":"(C5*D5)+IF(E5>0,E5,0)","v":{"v":0,"d":"0 lei"}}]
[null,"Salariile angajaților",{"$nulls":3},{"$f":"(C6*D6)+IF(E6>0,E6,0)","v":{"v":0,"d":"0 lei"}}]
[null,"Impozitele și beneficiile salariale ale angajaților",{"$nulls":3},{"v":0,"d":"0 lei"}]
[null,"Chirie/leasing/utilități",{"$nulls":3},{"v":0,"d":"0 lei"}]
[null,"Expedieri poștale/curierat",{"$nulls":3},{"v":0,"d":"0 lei"}]
[null,"BUGET DE PORNIRE ESTIMAT",{"$nulls":3},{"$f":"SUBTOTAL(109,Pornire[COST TOTAL])","v":0}]

{"sheet":"Exemplu de costuri de pornire","index":3,"n_rows":10,"n_cols":6,"rows_kept":10,"merged":[[1,2,1,5]]}
[null,"COSTURI DE PORNIRE"]
[null,{"$f":"'Șablon de costuri de pornire'!B2","v":"Cafeneaua ta"},{"$f":"TODAY()","v":"2022-01-13"}]
[]
[null,"ELEMENTE DE COST","LUNI","COST/LUNĂ","COST UNIC","COST TOTAL"]
[null,"Publicitate/marketing",3,{"v":300,"d":"300 lei"},{"v":2000,"d":"2,000 lei"},{"$f":"(C5*D5)+IF(E5>0,E5,0)","v":{"v":2900,"d":"2,900 lei"}}]
[null,"Salariile angajaților",4,{"v":3500,"d":"3,500 lei"},{"v":2,"d":"2 lei"},{"$f":"(C6*D6)+IF(E6>0,E6,0)","v":{"v":14002,"d":"14,002 lei"}}]
[null,"Impozitele și beneficiile salariale ale angajaților",4,{"v":500,"d":"500 lei"},{"v":2000,"d":"2,000 lei"},{"v":4000,"d":"4,000 lei"}]
[null,"Chirie/leasing/utilități",4,{"v":750,"d":"750 lei"},{"v":3000,"d":"3,000 lei"},{"v":6000,"d":"6,000 lei"}]
[null,"Expedieri poștale/curierat",1,{"v":25,"d":"25 lei"},{"v":25,"d":"25 lei"},{"v":50,"d":"50 lei"}]
[null,"BUGET DE PORNIRE ESTIMAT",{"$nulls":3},{"$f":"SUM(F6:F9)","v":{"v":24052,"d":"24,052 lei"}}]

{"sheet":"Șablon de profit și pierdere","index":4,"n_rows":23,"n_cols":15,"rows_kept":23,"merged":[[1,2,1,14]]}
[null,"COSTURI DE PORNIRE"]
[null,{"$f":"'Șablon de costuri de pornire'!B2","v":"Cafeneaua ta"},{"$f":"TODAY()","v":"2022-01-13"}]
[]
[null,"VENIT","IAN","FEB","MAR","APR","MAI","IUN","IUL","AUG","SEP","OCT","NOV","DEC","DE LA ÎNCEPUTUL ANULUI PÂNĂ LA ZI"]
[null,"Vânzări de produse estimate",{"v":0,"d":"0 lei"},{"v":0,"d":"0 lei"},{"v":0,"d":"0 lei"},{"v":0,"d":"0 lei"},{"v":0,"d":"0 lei"},{"v":0,"d":"0 lei"},{"v":0,"d":"0 lei"},{"v":0,"d":"0 lei"},{"v":0,"d":"0 lei"},{"v":0,"d":"0 lei"},{"v":0,"d":"0 lei"},{"v":0,"d":"0 lei"},{"$f":"SUM(C5:N5)","v":{"v":0,"d":"0 lei"}}]
[null,"Retururi și reduceri",{"v":0,"d":"0 lei"},{"v":0,"d":"0 lei"},{"v":0,"d":"0 lei"},{"v":0,"d":"0 lei"},{"v":0,"d":"0 lei"},{"v":0,"d":"0 lei"},{"v":0,"d":"0 lei"},{"v":0,"d":"0 lei"},{"v":0,"d":"0 lei"},{"v":0,"d":"0 lei"},{"v":0,"d":"0 lei"},{"v":0,"d":"0 lei"},{"$f":"SUM(C6:N6)","v":{"v":0,"d":"0 lei"}}]
[null,"Venit din servicii",{"v":0,"d":"0 lei"},{"v":0,"d":"0 lei"},{"v":0,"d":"0 lei"},{"v":0,"d":"0 lei"},{"v":0,"d":"0 lei"},{"v":0,"d":"0 lei"},{"v":0,"d":"0 lei"},{"v":0,"d":"0 lei"},{"v":0,"d":"0 lei"},{"v":0,"d":"0 lei"},{"v":0,"d":"0 lei"},{"v":0,"d":"0 lei"},{"v":0,"d":"0 lei"}]
[null,"Alte venituri ",{"v":0,"d":"0 lei"},{"v":0,"d":"0 lei"},{"v":0,"d":"0 lei"},{"v":0,"d":"0 lei"},{"v":0,"d":"0 lei"},{"v":0,"d":"0 lei"},{"v":0,"d":"0 lei"},{"v":0,"d":"0 lei"},{"v":0,"d":"0 lei"},{"v":0,"d":"0 lei"},{"v":0,"d":"0 lei"},{"v":0,"d":"0 lei"},{"v":0,"d":"0 lei"}]
[null,"Vânzări nete",{"$f":"SUBTOTAL(109,EșantionVenituri[IAN])","v":{"v":0,"d":"0 lei"}},{"$f":"SUBTOTAL(109,EșantionVenituri[FEB])","v":{"v":0,"d":"0 lei"}},{"$f":"SUBTOTAL(109,EșantionVenituri[MAR])","v":{"v":0,"d":"0 lei"}},{"$f":"SUBTOTAL(109,EșantionVenituri[APR])","v":{"v":0,"d":"0 lei"}},{"$f":"SUBTOTAL(109,EșantionVenituri[MAI])","v":{"v":0,"d":"0 lei"}},{"$f":"SUBTOTAL(109,EșantionVenituri[IUN])","v":{"v":0,"d":"0 lei"}},{"$f":"SUBTOTAL(109,EșantionVenituri[IUL])","v":{"v":0,"d":"0 lei"}},{"$f":"SUBTOTAL(109,EșantionVenituri[AUG])","v":{"v":0,"d":"0 lei"}},{"$f":"SUBTOTAL(109,EșantionVenituri[SEP])","v":{"v":0,"d":"0 lei"}},{"$f":"SUBTOTAL(109,EșantionVenituri[OCT])","v":{"v":0,"d":"0 lei"}},{"$f":"SUBTOTAL(109,EșantionVenituri[NOV])","v":{"v":0,"d":"0 lei"}},{"$f":"SUBTOTAL(109,EșantionVenituri[DEC])","v":{"v":0,"d":"0 lei"}},{"$f":"SUM(EșantionVenituri[[#Totals],[IAN]:[DEC]])","v":{"v":0,"d":"0 lei"}}]
[null,"Costul bunurilor vândute",{"$f":"C5*0.4","v":{"v":0,"d":"0 lei"}},{"v":0,"d":"0 lei"},{"v":0,"d":"0 lei"},{"v":0,"d":"0 lei"},{"v":0,"d":"0 lei"},{"v":0,"d":"0 lei"},{"v":0,"d":"0 lei"},{"v":0,"d":"0 lei"},{"v":0,"d":"0 lei"},{"v":0,"d":"0 lei"},{"v":0,"d":"0 lei"},{"v":0,"d":"0 lei"},{"v":0,"d":"0 lei"}]
[null,"Profit brut",{"$f":"IFERROR(EșantionVenituri[[#Totals],[IAN]]-C10,\"\")","v":{"v":0,"d":"0 lei"}},{"$f":"IFERROR(EșantionVenituri[[#Totals],[FEB]]-D10,\"\")","v":{"v":0,"d":"0 lei"}},{"$f":"IFERROR(EșantionVenituri[[#Totals],[MAR]]-E10,\"\")","v":{"v":0,"d":"0 lei"}},{"$f":"IFERROR(EșantionVenituri[[#Totals],[APR]]-F10,\"\")","v":{"v":0,"d":"0 lei"}},{"$f":"IFERROR(EșantionVenituri[[#Totals],[MAI]]-G10,\"\")","v":{"v":0,"d":"0 lei"}},{"$f":"IFERROR(EșantionVenituri[[#Totals],[IUN]]-H10,\"\")","v":{"v":0,"d":"0 lei"}},{"$f":"IFERROR(EșantionVenituri[[#Totals],[IUL]]-I10,\"\")","v":{"v":0,"d":"0 lei"}},{"$f":"IFERROR(EșantionVenituri[[#Totals],[AUG]]-J10,\"\")","v":{"v":0,"d":"0 lei"}},{"$f":"IFERROR(EșantionVenituri[[#Totals],[SEP]]-K10,\"\")","v":{"v":0,"d":"0 lei"}},{"$f":"IFERROR(EșantionVenituri[[#Totals],[OCT]]-L10,\"\")","v":{"v":0,"d":"0 lei"}},{"$f":"IFERROR(EșantionVenituri[[#Totals],[NOV]]-M10,\"\")","v":{"v":0,"d":"0 lei"}},{"$f":"IFERROR(EșantionVenituri[[#Totals],[DEC]]-N10,\"\")","v":{"v":0,"d":"0 lei"}},{"v":0,"d":"0 lei"}]
[]
[null,"CHELTUIELI","IAN","FEB","MAR","APR","MAI","IUN","IUL","AUG","SEP","OCT","NOV","DEC","DE LA ÎNCEPUTUL ANULUI PÂNĂ LA ZI"]
[null,"Salarii",{"v":0,"d":"0 lei"},{"v":0,"d":"0 lei"},{"v":0,"d":"0 lei"},{"v":0,"d":"0 lei"},{"v":0,"d":"0 lei"},{"v":0,"d":"0 lei"},{"v":0,"d":"0 lei"},{"v":0,"d":"0 lei"},{"v":0,"d":"0 lei"},{"v":0,"d":"0 lei"},{"v":0,"d":"0 lei"},{"v":0,"d":"0 lei"},{"$f":"SUM(C14:N14)","v":{"v":0,"d":"0 lei"}}]
[null,"Marketing/publicitate",{"v":0,"d":"0 lei"},{"v":0,"d":"0 lei"},{"v":0,"d":"0 lei"},{"v":0,"d":"0 lei"},{"v":0,"d":"0 lei"},{"v":0,"d":"0 lei"},{"v":0,"d":"0 lei"},{"v":0,"d":"0 lei"},{"v":0,"d":"0 lei"},{"v":0,"d":"0 lei"},{"v":0,"d":"0 lei"},{"v":0,"d":"0 lei"},{"$f":"SUM(C15:N15)","v":{"v":0,"d":"0 lei"}}]
[null,"Comisioane de vânzări",{"v":0,"d":"0 lei"},{"v":0,"d":"0 lei"},{"v":0,"d":"0 lei"},{"v":0,"d":"0 lei"},{"v":0,"d":"0 lei"},{"v":0,"d":"0 lei"},{"v":0,"d":"0 lei"},{"v":0,"d":"0 lei"},{"v":0,"d":"0 lei"},{"v":0,"d":"0 lei"},{"v":0,"d":"0 lei"},{"v":0,"d":"0 lei"},{"v":0,"d":"0 lei"}]
[null,"Chirie",{"v":0,"d":"0 lei"},{"v":0,"d":"0 lei"},{"v":0,"d":"0 lei"},{"v":0,"d":"0 lei"},{"v":0,"d":"0 lei"},{"v":0,"d":"0 lei"},{"v":0,"d":"0 lei"},{"v":0,"d":"0 lei"},{"v":0,"d":"0 lei"},{"v":0,"d":"0 lei"},{"v":0,"d":"0 lei"},{"v":0,"d":"0 lei"},{"v":0,"d":"0 lei"}]
[null,"Altele 1",{"v":0,"d":"0 lei"},{"v":0,"d":"0 lei"},{"v":0,"d":"0 lei"},{"v":0,"d":"0 lei"},{"v":0,"d":"0 lei"},{"v":0,"d":"0 lei"},{"v":0,"d":"0 lei"},{"v":0,"d":"0 lei"},{"v":0,"d":"0 lei"},{"v":0,"d":"0 lei"},{"v":0,"d":"0 lei"},{"v":0,"d":"0 lei"},{"v":0,"d":"0 lei"}]
[null,"Total cheltuieli",{"$f":"IF(SUM(C14:C18)=0,\"\",SUM(C14:C18))","v":""},"","","","","","","","","","","",{"$f":"SUM(EșantionCheltuieli[[#Totals],[IAN]:[DEC]])","v":{"v":0,"d":"0 lei"}}]
[null,"Venit înainte de taxe",{"$f":"IFERROR('Șablon de profit și pierdere'!$C$11-EșantionCheltuieli[[#Totals],[IAN]],\"\")","v":""},{"$f":"IFERROR('Șablon de profit și pierdere'!$C$11-EșantionCheltuieli[[#Totals],[FEB]],\"\")","v":""},{"$f":"IFERROR('Șablon de profit și pierdere'!$C$11-EșantionCheltuieli[[#Totals],[MAR]],\"\")","v":""},{"$f":"IFERROR('Șablon de profit și pierdere'!$C$11-EșantionCheltuieli[[#Totals],[APR]],\"\")","v":""},{"$f":"IFERROR('Șablon de profit și pierdere'!$C$11-EșantionCheltuieli[[#Totals],[MAI]],\"\")","v":""},{"$f":"IFERROR('Șablon de profit și pierdere'!$C$11-EșantionCheltuieli[[#Totals],[IUN]],\"\")","v":""},{"$f":"IFERROR('Șablon de profit și pierdere'!$C$11-EșantionCheltuieli[[#Totals],[IUL]],\"\")","v":""},{"$f":"IFERROR('Șablon de profit și pierdere'!$C$11-EșantionCheltuieli[[#Totals],[AUG]],\"\")","v":""},{"$f":"IFERROR('Șablon de profit și pierdere'!$C$11-EșantionCheltuieli[[#Totals],[SEP]],\"\")","v":""},{"$f":"IFERROR('Șablon de profit și pierdere'!$C$11-EșantionCheltuieli[[#Totals],[OCT]],\"\")","v":""},{"$f":"IFERROR('Șablon de profit și pierdere'!$C$11-EșantionCheltuieli[[#Totals],[NOV]],\"\")","v":""},{"$f":"IFERROR('Șablon de profit și pierdere'!$C$11-EșantionCheltuieli[[#Totals],[DEC]],\"\")","v":""},{"v":0,"d":"0 lei"}]
[null,"Cheltuieli cu impozitul pe venit",{"$f":"IFERROR(C20*0.15,\" \")","v":" "},{"$f":"IFERROR(D20*0.15,\" \")","v":" "},{"$f":"IFERROR(E20*0.15,\" \")","v":" "}," "," "," "," "," "," "," "," "," ",{"$f":"SUM('Șablon de profit și pierdere'!$C$21:$N$21)","v":{"v":0,"d":"0 lei"}}]
[]
[null,"VENIT NET",{"$f":"IFERROR(C20-'Șablon de profit și pierdere'!$C$21,\"\")","v":""},{"$f":"IFERROR(D20-'Șablon de profit și pierdere'!$D$21,\"\")","v":""},{"$f":"IFERROR(E20-'Șablon de profit și pierdere'!$E$21,\"\")","v":""},{"$f":"IFERROR(F20-'Șablon de profit și pierdere'!$F$21,\"\")","v":""},{"$f":"IFERROR(G20-'Șablon de profit și pierdere'!$G$21,\"\")","v":""},{"$f":"IFERROR(H20-'Șablon de profit și pierdere'!$H$21,\"\")","v":""},{"$f":"IFERROR(I20-'Șablon de profit și pierdere'!$I$21,\"\")","v":""},{"$f":"IFERROR(J20-'Șablon de profit și pierdere'!$J$21,\"\")","v":""},{"$f":"IFERROR(K20-'Șablon de profit și pierdere'!$K$21,\"\")","v":""},{"$f":"IFERROR(L20-'Șablon de profit și pierdere'!$L$21,\"\")","v":""},{"$f":"IFERROR(M20-'Șablon de profit și pierdere'!$M$21,\"\")","v":""},{"$f":"IFERROR(N20-'Șablon de profit și pierdere'!$N$21,\"\")","v":""},{"$f":"IFERROR(O20-'Șablon de profit și pierdere'!$O$21,\"\")","v":{"v":0,"d":"0 lei"}}]

{"sheet":"Exemplu de profit și pierdere","index":5,"n_rows":22,"n_cols":15,"rows_kept":22,"merged":[[1,2,1,14]]}
[null,"COSTURI DE PORNIRE"]
[null,{"$f":"'Șablon de costuri de pornire'!B2","v":"Cafeneaua ta"},{"$f":"TODAY()","v":"2022-01-13"}]
[]
[null,"VENIT","IAN","FEB","MAR","APR","MAI","IUN","IUL","AUG","SEP","OCT","NOV","DEC","DE LA ÎNCEPUTUL ANULUI PÂNĂ LA ZI"]
[null,"Vânzări de produse estimate",{"v":5000,"d":"5,000 lei"},{"v":13000,"d":"13,000 lei"},{"v":16000,"d":"16,000 lei"},{"v":7000,"d":"7,000 lei"},{"v":14500,"d":"14,500 lei"},{"v":16400,"d":"16,400 lei"},{"v":22500,"d":"22,500 lei"},{"v":23125,"d":"23,125 lei"},{"v":24549,"d":"24,549 lei"},{"v":22000,"d":"22,000 lei"},{"v":25000,"d":"25,000 lei"},{"v":27349,"d":"27,349 lei"},{"$f":"SUM(C5:N5)","v":{"v":216423,"d":"216,423 lei"}}]
[null,"Retururi și reduceri",{"v":0,"d":"0 lei"},{"v":-350,"d":"-350 lei"},{"v":0,"d":"0 lei"},{"v":-206,"d":"-206 lei"},{"v":-234,"d":"-234 lei"},{"v":0,"d":"0 lei"},{"v":0,"d":"0 lei"},{"v":-280,"d":"-280 lei"},{"v":-1200,"d":"-1,200 lei"},{"v":-1600,"d":"-1,600 lei"},{"v":0,"d":"0 lei"},{"v":-2400,"d":"-2,400 lei"},{"$f":"SUM(C6:N6)","v":{"v":-6270,"d":"-6,270 lei"}}]
[null,"Venit din servicii",{"v":0,"d":"0 lei"},{"v":0,"d":"0 lei"},{"v":0,"d":"0 lei"},{"v":0,"d":"0 lei"},{"v":0,"d":"0 lei"},{"v":250,"d":"250 lei"},{"v":350,"d":"350 lei"},{"v":100,"d":"100 lei"},{"v":0,"d":"0 lei"},{"v":0,"d":"0 lei"},{"v":1245,"d":"1,245 lei"},{"v":1360,"d":"1,360 lei"},{"v":3305,"d":"3,305 lei"}]
[null,"Alte venituri ",{"v":0,"d":"0 lei"},{"v":0,"d":"0 lei"},{"v":0,"d":"0 lei"},{"v":0,"d":"0 lei"},{"v":0,"d":"0 lei"},{"v":0,"d":"0 lei"},{"v":0,"d":"0 lei"},{"v":1500,"d":"1,500 lei"},{"v":0,"d":"0 lei"},{"v":0,"d":"0 lei"},{"v":0,"d":"0 lei"},{"v":0,"d":"0 lei"},{"v":1500,"d":"1,500 lei"}]
[null,"Vânzări nete",{"$f":"SUBTOTAL(109,VenituriReale[IAN])","v":{"v":5000,"d":"5,000 lei"}},{"$f":"SUBTOTAL(109,VenituriReale[FEB])","v":{"v":12650,"d":"12,650 lei"}},{"$f":"SUBTOTAL(109,VenituriReale[MAR])","v":{"v":16000,"d":"16,000 lei"}},{"$f":"SUBTOTAL(109,VenituriReale[APR])","v":{"v":6794,"d":"6,794 lei"}},{"$f":"SUBTOTAL(109,VenituriReale[MAI])","v":{"v":14266,"d":"14,266 lei"}},{"$f":"SUBTOTAL(109,VenituriReale[IUN])","v":{"v":16650,"d":"16,650 lei"}},{"$f":"SUBTOTAL(109,VenituriReale[IUL])","v":{"v":22850,"d":"22,850 lei"}},{"$f":"SUBTOTAL(109,VenituriReale[AUG])","v":{"v":24445,"d":"24,445 lei"}},{"$f":"SUBTOTAL(109,VenituriReale[SEP])","v":{"v":23349,"d":"23,349 lei"}},{"$f":"SUBTOTAL(109,VenituriReale[OCT])","v":{"v":20400,"d":"20,400 lei"}},{"$f":"SUBTOTAL(109,VenituriReale[NOV])","v":{"v":26245,"d":"26,245 lei"}},{"$f":"SUBTOTAL(109,VenituriReale[DEC])","v":{"v":26309,"d":"26,309 lei"}},{"$f":"SUM(VenituriReale[[#Totals],[IAN]:[DEC]])","v":{"v":214958,"d":"214,958 lei"}}]
[null,"Costul bunurilor vândute",{"$f":"C5*0.4","v":{"v":2000,"d":"2,000 lei"}},{"v":5200,"d":"5,200 lei"},{"v":6400,"d":"6,400 lei"},{"v":2800,"d":"2,800 lei"},{"v":5800,"d":"5,800 lei"},{"v":6560,"d":"6,560 lei"},{"v":9000,"d":"9,000 lei"},{"v":9250,"d":"9,250 lei"},{"v":9819.6,"d":"9,820 lei"},{"v":8800,"d":"8,800 lei"},{"v":10000,"d":"10,000 lei"},{"v":10939.6,"d":"10,940 lei"},{"v":86569.20000000001,"d":"86,569 lei"}]
[null,"Profit brut",{"$f":"IFERROR(VenituriReale[[#Totals],[IAN]]-C10,\"\")","v":{"v":3000,"d":"3,000 lei"}},{"$f":"IFERROR(VenituriReale[[#Totals],[FEB]]-D10,\"\")","v":{"v":7450,"d":"7,450 lei"}},{"$f":"IFERROR(VenituriReale[[#Totals],[MAR]]-E10,\"\")","v":{"v":9600,"d":"9,600 lei"}},{"$f":"IFERROR(VenituriReale[[#Totals],[APR]]-F10,\"\")","v":{"v":3994,"d":"3,994 lei"}},{"$f":"IFERROR(VenituriReale[[#Totals],[MAI]]-G10,\"\")","v":{"v":8466,"d":"8,466 lei"}},{"$f":"IFERROR(VenituriReale[[#Totals],[IUN]]-H10,\"\")","v":{"v":10090,"d":"10,090 lei"}},{"$f":"IFERROR(VenituriReale[[#Totals],[IUL]]-I10,\"\")","v":{"v":13850,"d":"13,850 lei"}},{"$f":"IFERROR(VenituriReale[[#Totals],[AUG]]-J10,\"\")","v":{"v":15195,"d":"15,195 lei"}},{"$f":"IFERROR(VenituriReale[[#Totals],[SEP]]-K10,\"\")","v":{"v":13529.4,"d":"13,529 lei"}},{"$f":"IFERROR(VenituriReale[[#Totals],[OCT]]-L10,\"\")","v":{"v":11600,"d":"11,600 lei"}},{"$f":"IFERROR(VenituriReale[[#Totals],[NOV]]-M10,\"\")","v":{"v":16245,"d":"16,245 lei"}},{"$f":"IFERROR(VenituriReale[[#Totals],[DEC]]-N10,\"\")","v":{"v":15369.4,"d":"15,369 lei"}},{"v":128388.79999999999,"d":"128,389 lei"}]
[]
[null,"CHELTUIELI","IAN","FEB","MAR","APR","MAI","IUN","IUL","AUG","SEP","OCT","NOV","DEC","DE LA ÎNCEPUTUL ANULUI PÂNĂ LA ZI"]
[null,"Salarii",{"v":2500,"d":"2,500 lei"},{"v":2500,"d":"2,500 lei"},{"v":3500,"d":"3,500 lei"},{"v":5000,"d":"5,000 lei"},{"v":5000,"d":"5,000 lei"},{"v":5000,"d":"5,000 lei"},{"v":8000,"d":"8,000 lei"},{"v":9000,"d":"9,000 lei"},{"v":9000,"d":"9,000 lei"},{"v":9000,"d":"9,000 lei"},{"v":9000,"d":"9,000 lei"},{"v":9000,"d":"9,000 lei"},{"$f":"SUM(C14:N14)","v":{"v":76500,"d":"76,500 lei"}}]
[null,"Marketing/publicitate",{"v":400,"d":"400 lei"},{"v":450,"d":"450 lei"},{"v":450,"d":"450 lei"},{"v":450,"d":"450 lei"},{"v":900,"d":"900 lei"},{"v":900,"d":"900 lei"},{"v":900,"d":"900 lei"},{"v":900,"d":"900 lei"},{"v":900,"d":"900 lei"},{"v":900,"d":"900 lei"},{"v":1200,"d":"1,200 lei"},{"v":1200,"d":"1,200 lei"},{"$f":"SUM(C15:N15)","v":{"v":9550,"d":"9,550 lei"}}]
[null,"Comisioane de vânzări",{"v":250,"d":"250 lei"},{"v":650,"d":"650 lei"},{"v":800,"d":"800 lei"},{"v":350,"d":"350 lei"},{"v":725,"d":"725 lei"},{"v":820,"d":"820 lei"},{"v":1125,"d":"1,125 lei"},{"v":1156.25,"d":"1,156 lei"},{"v":1227.45,"d":"1,227 lei"},{"v":1100,"d":"1,100 lei"},{"v":1250,"d":"1,250 lei"},{"v":1367.45,"d":"1,367 lei"},{"v":10821.150000000001,"d":"10,821 lei"}]
[null,"Chirie",{"v":1250,"d":"1,250 lei"},{"v":1250,"d":"1,250 lei"},{"v":1250,"d":"1,250 lei"},{"v":1250,"d":"1,250 lei"},{"v":1250,"d":"1,250 lei"},{"v":1250,"d":"1,250 lei"},{"v":1250,"d":"1,250 lei"},{"v":1250,"d":"1,250 lei"},{"v":1250,"d":"1,250 lei"},{"v":1250,"d":"1,250 lei"},{"v":1250,"d":"1,250 lei"},{"v":1250,"d":"1,250 lei"},{"v":15000,"d":"15,000 lei"}]
[null,"Total cheltuieli",{"$f":"IF(SUM(C14:C17)=0,\"\",SUM(C14:C17))","v":{"v":4400,"d":"4,400 lei"}},{"v":4850,"d":"4,850 lei"},{"v":6000,"d":"6,000 lei"},{"v":7050,"d":"7,050 lei"},{"v":7875,"d":"7,875 lei"},{"v":7970,"d":"7,970 lei"},{"v":11275,"d":"11,275 lei"},{"v":12306.25,"d":"12,306 lei"},{"v":12377.45,"d":"12,377 lei"},{"v":12250,"d":"12,250 lei"},{"v":12700,"d":"12,700 lei"},{"v":12817.45,"d":"12,817 lei"},{"$f":"SUM(CheltuieliReale[[#Totals],[IAN]:[DEC]])","v":{"v":111871.15,"d":"111,871 lei"}}]
[null,"Venit înainte de taxe",{"$f":"IFERROR('Exemplu de profit și pierdere'!$C$11-CheltuieliReale[[#Totals],[IAN]],\"\")","v":{"v":-1400,"d":"-1,400 lei"}},{"$f":"IFERROR('Exemplu de profit și pierdere'!$D$11-CheltuieliReale[[#Totals],[FEB]],\"\")","v":{"v":2600,"d":"2,600 lei"}},{"$f":"IFERROR('Exemplu de profit și pierdere'!$E$11-CheltuieliReale[[#Totals],[MAR]],\"\")","v":{"v":3600,"d":"3,600 lei"}},{"$f":"IFERROR('Exemplu de profit și pierdere'!$F$11-CheltuieliReale[[#Totals],[APR]],\"\")","v":{"v":-3056,"d":"-3,056 lei"}},{"$f":"IFERROR('Exemplu de profit și pierdere'!$G$11-CheltuieliReale[[#Totals],[MAI]],\"\")","v":{"v":591,"d":"591 lei"}},{"$f":"IFERROR('Exemplu de profit și pierdere'!$H$11-CheltuieliReale[[#Totals],[IUN]],\"\")","v":{"v":2120,"d":"2,120 lei"}},{"$f":"IFERROR('Exemplu de profit și pierdere'!$I$11-CheltuieliReale[[#Totals],[IUL]],\"\")","v":{"v":2575,"d":"2,575 lei"}},{"$f":"IFERROR('Exemplu de profit și pierdere'!$J$11-CheltuieliReale[[#Totals],[AUG]],\"\")","v":{"v":2888.75,"d":"2,889 lei"}},{"$f":"IFERROR('Exemplu de profit și pierdere'!$K$11-CheltuieliReale[[#Totals],[SEP]],\"\")","v":{"v":1151.949999999999,"d":"1,152 lei"}},{"$f":"IFERROR('Exemplu de profit și pierdere'!$L$11-CheltuieliReale[[#Totals],[OCT]],\"\")","v":{"v":-650,"d":"-650 lei"}},{"$f":"IFERROR('Exemplu de profit și pierdere'!$M$11-CheltuieliReale[[#Totals],[NOV]],\"\")","v":{"v":3545,"d":"3,545 lei"}},{"$f":"IFERROR('Exemplu de profit și pierdere'!$N$11-CheltuieliReale[[#Totals],[DEC]],\"\")","v":{"v":2551.949999999999,"d":"2,552 lei"}},{"$f":"SUM(C19:N19)","v":{"v":16517.649999999998,"d":"16,518 lei"}}]
[null,"Cheltuieli cu impozitul pe venit",{"$f":"C19*0.15","v":{"v":-210,"d":"-210 lei"}},{"v":390,"d":"390 lei"},{"$f":"E19*0.15","v":{"v":540,"d":"540 lei"}},{"$f":"F19*0.15","v":{"v":-458.4,"d":"-458 lei"}},{"$f":"G19*0.15","v":{"v":88.64999999999999,"d":"89 lei"}},{"$f":"H19*0.15","v":{"v":318,"d":"318 lei"}},{"$f":"I19*0.15","v":{"v":386.25,"d":"386 lei"}},{"$f":"J19*0.15","v":{"v":433.3125,"d":"433 lei"}},{"$f":"K19*0.15","v":{"v":172.79249999999982,"d":"173 lei"}},{"$f":"L19*0.15","v":{"v":-97.5,"d":"-98 lei"}},{"$f":"M19*0.15","v":{"v":531.75,"d":"532 lei"}},{"$f":"N19*0.15","v":{"v":382.79249999999985,"d":"383 lei"}},{"$f":"SUM('Exemplu de profit și pierdere'!$C$20:$N$20)","v":{"v":2477.6474999999996,"d":"2,478 lei"}}]
[]
[null,"VENIT NET",{"$f":"IFERROR(C19-'Exemplu de profit și pierdere'!$C$20,\" \")","v":{"v":-1190,"d":"-1,190 lei"}},{"$f":"IFERROR(D19-'Exemplu de profit și pierdere'!$D$20,\" \")","v":{"v":2210,"d":"2,210 lei"}},{"$f":"IFERROR(E19-'Exemplu de profit și pierdere'!$E$20,\"\")","v":{"v":3060,"d":"3,060 lei"}},{"$f":"IFERROR(F19-'Exemplu de profit și pierdere'!$F$20,\"\")","v":{"v":-2597.6,"d":"-2,598 lei"}},{"$f":"IFERROR(G19-'Exemplu de profit și pierdere'!$G$20,\"\")","v":{"v":502.35,"d":"502 lei"}},{"$f":"IFERROR(H19-'Exemplu de profit și pierdere'!$H$20,\"\")","v":{"v":1802,"d":"1,802 lei"}},{"$f":"IFERROR(I19-'Exemplu de profit și pierdere'!$I$20,\"\")","v":{"v":2188.75,"d":"2,189 lei"}},{"$f":"IFERROR(J19-'Exemplu de profit și pierdere'!$J$20,\"\")","v":{"v":2455.4375,"d":"2,455 lei"}},{"$f":"IFERROR(K19-'Exemplu de profit și pierdere'!$K$20,\"\")","v":{"v":979.1574999999991,"d":"979 lei"}},{"$f":"IFERROR(L19-'Exemplu de profit și pierdere'!$L$20,\"\")","v":{"v":-552.5,"d":"-553 lei"}},{"$f":"IFERROR(M19-'Exemplu de profit și pierdere'!$M$20,\"\")","v":{"v":3013.25,"d":"3,013 lei"}},{"$f":"IFERROR(N19-'Exemplu de profit și pierdere'!$N$20,\"\")","v":{"v":2169.157499999999,"d":"2,169 lei"}},{"$f":"IFERROR(O19-'Exemplu de profit și pierdere'!$O$20,\"\")","v":{"v":14040.002499999999,"d":"14,040 lei"}}]